bitfinex-derivatives/quotes_BNBF0:USTF0_20250331
["timestamp","ask_amount","ask_price","bid_price","bid_amount"]
[1743431060152,2.3358456,600.0,599.52,0.33360021]
[1743431060354,5.41702362,599.99,599.52,0.33360021]
[1743431060553,2.3358456,599.98,599.52,0.33360021]
[1743431060756,0.90400769,599.97,599.52,0.33360021]
[1743431060954,2.33584395,599.96,599.52,0.33360021]
[1743431061157,0.90400769,599.95,599.52,0.33360021]
[1743431061356,0.90400769,599.94,599.52,0.33360021]
[1743431061657,3.08117802,599.95,599.52,0.33360021]
[1743431061858,0.90408676,599.94,599.52,0.33360021]
[1743431062158,1.18506847,599.93,599.52,0.33360021]
[1743431062758,1.18506847,599.92,599.52,0.33360021]
[1743431062953,0.90416917,599.91,599.52,0.33360021]
[1743431063154,2.08923764,599.9,599.52,0.33360021]
[1743431063358,0.90416917,599.89,599.52,0.33360021]
[1743431063557,0.90416917,599.88,599.52,0.33360021]
[1743431063754,0.9043302,599.87,599.52,0.33360021]
[1743431063954,0.9043302,599.86,599.52,0.33360021]
[1743431064163,3.08214387,599.88,599.52,0.33360021]
[1743431064460,1.18506847,599.85,599.52,0.33360021]
[1743431065158,1.18506847,599.84,599.52,0.33360021]
[1743431065755,1.18506847,599.83,599.52,0.33360021]
[1743431066158,1.44723985,599.93,599.52,0.33360021]
[1743431066354,2.33715316,599.92,599.52,0.33360021]
[1743431066556,2.33715316,599.91,599.52,0.33360021]
[1743431066759,3.78452945,599.9,599.52,0.33360021]
[1743431066959,2.33715316,599.89,599.52,0.33360021]
[1743431067261,2.33715316,599.88,599.52,0.33360021]
[1743431067457,2.33715316,599.87,599.52,0.33360021]
[1743431067759,2.33715316,599.86,599.52,0.33360021]
[1743431067961,0.9045249,599.85,599.52,0.33360021]
[1743431068163,0.9045249,599.84,599.52,0.33360021]
[1743431068362,0.9045249,599.83,599.52,0.33360021]
[1743431068559,0.9045249,599.82,599.52,0.33360021]
[1743431068757,1.18597452,599.83,599.52,0.33360021]
[1743431068959,1.18597452,599.81,599.52,0.33360021]
[1743431069362,5.17331258,600.02,599.52,0.33360021]
[1743431069558,2.33775428,600.01,599.52,0.33360021]
[1743431069762,0.90467208,600.0,599.52,0.33360021]
[1743431069957,1.18610223,599.99,599.52,0.33360021]
[1743431070562,1.18610223,599.98,599.52,0.33360021]
[1743431071161,1.18610223,599.97,599.52,0.33360021]
[1743431072056,1.65199644,600.23,599.52,0.33360021]
[1743431072057,5.17568879,600.2,599.52,0.33360021]
[1743431072259,6.58071725,600.19,599.52,0.33360021]
[1743431072559,6.08078538,600.18,599.52,0.33360021]
[1743431072759,6.08078538,600.17,599.52,0.33360021]
[1743431072959,7.26746918,600.17,599.52,0.33360021]
[1743431073167,3.78688518,600.16,599.52,0.33360021]
[1743431073365,3.78688518,600.15,599.52,0.33360021]
[1743431073663,2.33868906,600.14,599.52,0.33360021]
[1743431073865,2.33868906,600.13,599.52,0.33360021]
[1743431074062,5.42406694,600.12,599.52,0.33360021]
[1743431074365,2.33991326,600.11,599.52,0.33360021]
[1743431074568,0.90509659,600.1,599.52,0.33360021]
[1743431074865,0.90509659,600.09,599.52,0.33360021]
[1743431075063,1.1866838,600.1,599.52,0.33360021]
[1743431075363,1.1866838,600.08,599.52,0.33360021]
[1743431076269,1.43468032,600.24,599.52,0.33360021]
[1743431076566,5.42851652,600.23,599.52,0.33360021]
[1743431076762,3.78991505,600.22,599.52,0.33360021]
[1743431076961,3.79039313,600.21,599.52,0.33360021]
[1743431077159,2.34089408,600.2,599.52,0.33360021]
[1743431077366,3.79024056,600.19,599.52,0.33360021]
[1743431077666,6.08643829,600.18,599.52,0.33360021]
[1743431077866,3.08807663,600.21,599.52,0.33360021]
[1743431078168,6.87888447,600.2,599.52,0.33360021]
[1743431078366,3.79080784,600.19,599.52,0.33360021]
[1743431078567,3.79080784,600.18,599.52,0.33360021]
[1743431078766,2.34114457,600.17,599.52,0.33360021]
[1743431078969,0.90603954,600.16,599.52,0.33360021]
[1743431079167,2.09379347,600.15,599.52,0.33360021]
[1743431079366,1.18775393,600.15,599.52,0.33360021]
[1743431080161,0.29009912,600.41,599.52,0.33360021]
[1743431080162,1.44930928,600.28,599.52,0.33360021]
[1743431080366,2.33999825,600.27,599.52,0.33360021]
[1743431080567,5.42706718,600.26,599.52,0.33360021]
[1743431080763,2.34001647,600.25,599.52,0.33360021]
[1743431080967,5.4270854,600.24,599.52,0.33360021]
[1743431081167,0.90558115,600.23,599.52,0.33360021]
[1743431081367,0.90558115,600.22,599.52,0.33360021]
[1743431081670,0.90547579,600.21,599.52,0.33360021]
[1743431081870,0.90547579,600.2,599.52,0.33360021]
[1743431082069,0.90547236,600.19,599.52,0.33360021]
[1743431082273,1.1873342,600.21,599.52,0.33360021]
[1743431082472,0.90536871,600.2,599.52,0.33360021]
[1743431082668,1.1873342,600.19,599.52,0.33360021]
[1743431083072,2.33935259,600.18,599.52,0.33360021]
[1743431083272,2.33935259,600.17,599.52,0.33360021]
[1743431083572,2.33935259,600.16,599.52,0.33360021]
[1743431083771,0.90538827,600.15,599.52,0.33360021]
[1743431083972,2.0927148,600.14,599.52,0.33360021]
[1743431084169,0.9053806,600.13,599.52,0.33360021]
[1743431084374,1.1873342,600.13,599.52,0.33360021]
[1743431084771,1.1873342,600.12,599.52,0.33360021]
[1743431085676,1.1873342,600.11,599.52,0.33360021]
[1743431086483,4.24236667,600.35,599.52,0.33360021]
[1743431086677,6.081443,600.34,599.52,0.33360021]
[1743431086876,6.081443,600.33,599.52,0.33360021]
[1743431087078,6.081443,600.32,599.52,0.33360021]
[1743431087278,6.081443,600.31,599.52,0.33360021]
[1743431087479,6.081443,600.3,599.52,0.33360021]
[1743431087683,6.081443,600.29,599.52,0.33360021]
[1743431087986,3.78721493,600.28,599.52,0.33360021]
[1743431088286,2.3389336,600.27,599.52,0.33360021]
[1743431088481,0.90517642,600.26,599.52,0.33360021]
[1743431088681,0.90517642,600.25,599.52,0.33360021]
[1743431088885,1.1867822,600.25,599.52,0.33360021]
[1743431089281,1.65199644,600.5,599.52,0.33360021]
[1743431089282,1.1867822,600.24,599.52,0.33360021]
[1743431089787,1.4470799,600.38,599.52,0.33360021]
[1743431089988,3.78415645,600.37,599.52,0.33360021]
[1743431090191,2.33707655,600.36,599.52,0.33360021]
[1743431090389,5.41926798,600.35,599.52,0.33360021]
[1743431090588,2.33707655,600.34,599.52,0.33360021]
[1743431090788,0.90444099,600.33,599.52,0.33360021]
[1743431090988,0.90444099,600.32,599.52,0.33360021]
[1743431091289,2.08989923,600.31,599.52,0.33360021]
[1743431091490,1.18545824,600.31,599.52,0.33360021]
[1743431091988,0.90382459,600.3,599.52,0.33360021]
[1743431092188,1.18545824,600.3,599.52,0.33360021]
[1743431092387,0.90364647,600.29,599.52,0.33360021]
[1743431092587,1.18545824,600.3,599.52,0.33360021]
[1743431092785,1.18545824,600.29,599.52,0.33360021]
[1743431093389,1.18545824,600.28,599.52,0.33360021]
[1743431094185,1.18545824,600.27,599.52,0.33360021]
[1743431094385,4.2342512,600.47,599.52,0.33360021]
[1743431094587,0.29007614,600.54,599.52,0.33360021]
[1743431094588,6.56771474,600.46,599.52,0.33360021]
[1743431094783,6.0679973,600.45,599.52,0.33360021]
[1743431094988,6.0679973,600.44,599.52,0.33360021]
[1743431095188,6.0679973,600.43,599.52,0.33360021]
[1743431095385,6.06704767,600.42,599.52,0.33360021]
[1743431095585,9.14539251,600.41,599.52,0.33360021]
[1743431095891,3.77776327,600.4,599.52,0.33360021]
[1743431096088,6.85610811,600.39,599.52,0.33360021]
[1743431096390,3.77776327,600.38,599.52,0.33360021]
[1743431096587,3.77776327,600.37,599.52,0.33360021]
[1743431096784,3.77776327,600.36,599.52,0.33360021]
[1743431096989,2.33324617,600.35,599.52,0.33360021]
[1743431097290,2.33324617,600.34,599.52,0.33360021]
[1743431097491,2.08643624,600.33,599.52,0.33360021]
[1743431097688,0.90245746,600.32,599.52,0.33360021]
[1743431097890,0.90246643,600.31,599.52,0.33360021]
[1743431098193,1.18397878,600.33,599.52,0.33360021]
[1743431098393,1.18397878,600.3,599.52,0.33360021]
[1743431098888,1.18397878,600.29,599.52,0.33360021]
[1743431099290,4.23067961,600.48,599.52,0.33360021]
[1743431099486,6.06247233,600.47,599.52,0.33360021]
[1743431099690,6.06247873,600.46,599.52,0.33360021]
[1743431099886,6.06247873,600.45,599.52,0.33360021]
[1743431100092,3.77550672,600.44,599.52,0.33360021]
[1743431100390,6.85153024,600.43,599.52,0.33360021]
[1743431100590,3.77550672,600.42,599.52,0.33360021]
[1743431100792,3.77550672,600.41,599.52,0.33360021]
[1743431100987,3.77550672,600.4,599.52,0.33360021]
[1743431101191,3.77550672,600.39,599.52,0.33360021]
[1743431101493,6.85153024,600.38,599.52,0.33360021]
[1743431101692,2.33172259,600.37,599.52,0.33360021]
[1743431101887,2.33172259,600.36,599.52,0.33360021]
[1743431102092,0.90236508,600.35,599.52,0.33360021]
[1743431102288,0.90236508,600.34,599.52,0.33360021]
[1743431102488,0.90236508,600.33,599.52,0.33360021]
[1743431102690,0.90239907,600.32,599.52,0.33360021]
[1743431102892,0.90239907,600.31,599.52,0.33360021]
[1743431103089,1.18308597,600.32,599.52,0.33360021]
[1743431103296,2.33189783,600.31,599.52,0.33360021]
[1743431103492,3.77592689,600.3,599.52,0.33360021]
[1743431103694,3.77595588,600.29,599.52,0.33360021]
[1743431103896,3.07634503,600.3,599.52,0.33360021]
[1743431103897,2.33189783,600.28,599.52,0.33360021]
[1743431104193,3.77600051,600.27,599.52,0.33360021]
[1743431104405,3.77600051,600.26,599.52,0.33360021]
[1743431104592,3.77600051,600.25,599.52,0.33360021]
[1743431104793,2.33213699,600.24,599.52,0.33360021]
[1743431104990,0.90242315,600.23,599.52,0.33360021]
[1743431105194,0.90242315,600.22,599.52,0.33360021]
[1743431105390,2.08550912,600.21,599.52,0.33360021]
[1743431105589,0.90242315,600.2,599.52,0.33360021]
[1743431105794,0.90242315,600.19,599.52,0.33360021]
[1743431105994,0.90267972,600.18,599.52,0.33360021]
[1743431106197,1.18308597,600.19,599.52,0.33360021]
[1743431106697,0.90277588,600.18,599.52,0.33360021]
[1743431106893,1.18308597,600.18,599.52,0.33360021]
[1743431107498,2.08609811,600.17,599.52,0.33360021]
[1743431107696,1.18308597,600.16,599.52,0.33360021]
[1743431108198,1.18308597,600.15,599.52,0.33360021]
[1743431108399,1.18420778,600.14,599.52,0.33360021]
[1743431108600,0.90335282,600.13,599.52,0.33360021]
[1743431108793,2.3343345,600.12,599.52,0.33360021]
[1743431108995,5.41368236,600.11,599.52,0.33360021]
[1743431109192,2.3343345,600.1,599.52,0.33360021]
[1743431109401,0.90340955,600.09,599.52,0.33360021]
[1743431109598,1.18420778,600.1,599.52,0.33360021]
[1743431110100,0.29009912,600.44,599.52,0.33360021]
[1743431110101,5.1675356,600.34,599.52,0.33360021]
[1743431110294,0.29009912,600.44,599.52,0.33360021]
[1743431110295,9.65295123,600.33,599.52,0.33360021]
[1743431110500,6.57195906,600.32,599.52,0.33360021]
[1743431110700,6.57195906,600.31,599.52,0.33360021]
[1743431110896,6.57195906,600.3,599.52,0.33360021]
[1743431111102,6.57195906,600.29,599.52,0.33360021]
[1743431111301,6.57195906,600.28,599.52,0.33360021]
[1743431111500,6.57195906,600.27,599.52,0.33360021]
[1743431111701,6.57195906,600.26,599.52,0.33360021]
[1743431111904,6.5748727,600.25,599.52,0.33360021]
[1743431112101,6.07501361,600.24,599.52,0.33360021]
[1743431112301,9.65588213,600.23,599.52,0.33360021]
[1743431112496,6.07501361,600.22,599.52,0.33360021]
[1743431112704,6.57490639,600.21,599.52,0.33360021]
[1743431113002,6.07590602,600.2,599.52,0.33360021]
[1743431113203,3.78334837,600.19,599.52,0.33360021]
[1743431113401,3.78334837,600.18,599.52,0.33360021]
[1743431113601,3.78334837,600.17,599.52,0.33360021]
[1743431113804,2.33654369,600.16,599.52,0.33360021]
[1743431114098,3.08099217,600.17,599.52,0.33360021]
[1743431114099,6.86536386,600.15,599.52,0.33360021]
[1743431114304,2.33654369,600.14,599.52,0.33360021]
[1743431114505,5.41753586,600.13,599.52,0.33360021]
[1743431114696,2.33654369,600.12,599.52,0.33360021]
[1743431114900,0.90425292,600.11,599.52,0.33360021]
[1743431115102,0.90425292,600.1,599.52,0.33360021]
[1743431115302,0.90425292,600.09,599.52,0.33360021]
[1743431115605,1.18499699,600.11,599.52,0.33360021]
[1743431115797,1.650548,600.28,599.52,0.33360021]
[1743431115798,1.18499699,600.08,599.52,0.33360021]
[1743431116303,2.09052645,600.07,599.52,0.33360021]
[1743431116499,1.18499699,600.07,599.52,0.33360021]
[1743431116909,2.0905919,600.06,599.52,0.33360021]
[1743431117102,0.90559491,600.05,599.52,0.33360021]
[1743431117307,0.90559491,600.04,599.52,0.33360021]
[1743431117606,1.18499699,600.04,599.52,0.33360021]
[1743431117808,1.18499699,600.03,599.52,0.33360021]
[1743431118410,1.18499699,600.02,599.52,0.33360021]
[1743431119105,1.18499699,600.01,599.52,0.33360021]
[1743431119909,2.09096351,600.0,599.52,0.33360021]
[1743431120209,0.90596652,599.99,599.52,0.33360021]
[1743431120410,1.18499699,599.99,599.52,0.33360021]
[1743431120610,0.9059736,599.98,599.52,0.33360021]
[1743431120810,0.90598555,599.97,599.52,0.33360021]
[1743431121003,1.18499699,599.98,599.52,0.33360021]
[1743431121204,0.90603166,599.97,599.52,0.33360021]
[1743431121408,2.3410466,599.96,599.52,0.33360021]
[1743431121609,2.3410466,599.95,599.52,0.33360021]
[1743431121810,2.3410466,599.94,599.52,0.33360021]
[1743431122010,2.3410466,599.93,599.52,0.33360021]
[1743431122210,2.34112816,599.92,599.52,0.33360021]
[1743431122407,2.34112816,599.91,599.52,0.33360021]
[1743431122711,5.42685716,599.9,599.52,0.33360021]
[1743431122911,0.90611322,599.89,599.52,0.33360021]
[1743431123212,0.90611322,599.88,599.52,0.33360021]
[1743431123405,1.18499699,599.88,599.52,0.33360021]
[1743431123810,1.18499699,599.87,599.52,0.33360021]
[1743431124405,1.18499699,599.86,599.52,0.33360021]
[1743431124808,2.09102121,599.85,599.52,0.33360021]
[1743431125008,1.18499699,599.85,599.52,0.33360021]
[1743431125208,1.18499699,599.84,599.52,0.33360021]
[1743431125813,1.18499699,599.83,599.52,0.33360021]
[1743431126314,1.18499699,599.82,599.52,0.33360021]
[1743431127111,4.24550403,600.02,599.52,0.33360021]
[1743431127309,6.58686234,600.01,599.52,0.33360021]
[1743431127515,6.58686234,600.0,599.52,0.33360021]
[1743431127716,2.3556929,599.99,599.52,0.33360021]
[1743431128019,6.87915211,599.98,599.52,0.33360021]
[1743431128213,3.79067071,599.97,599.52,0.33360021]
[1743431128413,2.34113077,599.96,599.52,0.33360021]
[1743431128618,2.34113077,599.95,599.52,0.33360021]
[1743431128819,2.34113077,599.94,599.52,0.33360021]
[1743431129117,2.3414844,599.93,599.52,0.33360021]
[1743431129318,0.90615296,599.92,599.52,0.33360021]
[1743431129518,3.0884814,599.94,599.52,0.33360021]
[1743431129519,0.90615296,599.91,599.52,0.33360021]
[1743431129719,1.18787746,599.91,599.52,0.33360021]
[1743431130220,1.18787746,599.9,599.52,0.33360021]
[1743431130815,1.18787746,599.89,599.52,0.33360021]
[1743431131417,1.18787746,599.88,599.52,0.33360021]
[1743431132217,1.18787746,599.87,599.52,0.33360021]
[1743431132818,1.18787746,599.86,599.52,0.33360021]
[1743431133521,1.18787746,599.85,599.52,0.33360021]
[1743431134218,1.89997065,599.97,599.52,0.33360021]
[1743431134423,2.33968182,599.96,599.52,0.33360021]
[1743431134628,2.33968182,599.95,599.52,0.33360021]
[1743431134821,2.33968182,599.94,599.52,0.33360021]
[1743431135122,3.52678286,599.93,599.52,0.33360021]
[1743431135322,0.90550158,599.92,599.52,0.33360021]
[1743431135522,0.90550158,599.91,599.52,0.33360021]
[1743431135714,0.29026971,600.1,599.52,0.33360021]
[1743431135918,6.58179142,600.09,599.52,0.33360021]
[1743431136115,1.18692288,599.9,599.52,0.33360021]
[1743431136323,0.90528172,599.89,599.52,0.33360021]
[1743431136520,0.90528172,599.88,599.52,0.33360021]
[1743431136720,0.90528172,599.87,599.52,0.33360021]
[1743431136922,1.18692288,599.88,599.52,0.33360021]
[1743431137222,0.90516076,599.87,599.52,0.33360021]
[1743431137523,2.09208364,599.86,599.52,0.33360021]
[1743431137723,1.18692288,599.86,599.52,0.33360021]
[1743431138324,1.18692288,599.85,599.52,0.33360021]
[1743431139024,1.18692288,599.84,599.52,0.33360021]
[1743431139430,1.18692288,599.83,599.52,0.33360021]
[1743431139826,1.18692288,599.82,599.52,0.33360021]
[1743431140526,3.74059065,600.01,599.52,0.33360021]
[1743431140527,3.74059065,600.0,599.52,0.33360021]
[1743431140726,1.65337095,600.15,599.52,0.33360021]
[1743431140727,6.07836894,599.99,599.52,0.33360021]
[1743431140927,6.07836894,599.98,599.52,0.33360021]
[1743431141121,9.16265126,599.97,599.52,0.33360021]
[1743431141326,3.78545836,599.96,599.52,0.33360021]
[1743431141627,6.86974068,599.95,599.52,0.33360021]
[1743431141821,3.78536761,599.94,599.52,0.33360021]
[1743431142025,2.33768754,599.93,599.52,0.33360021]
[1743431142221,2.33768754,599.92,599.52,0.33360021]
[1743431142426,2.33768754,599.91,599.52,0.33360021]
[1743431142623,2.33768754,599.9,599.52,0.33360021]
[1743431142928,2.33768754,599.89,599.52,0.33360021]
[1743431143127,0.9047648,599.88,599.52,0.33360021]
[1743431143328,0.9047648,599.87,599.52,0.33360021]
[1743431143527,0.9047648,599.86,599.52,0.33360021]
[1743431143730,1.18626243,599.85,599.52,0.33360021]
[1743431144433,1.18626243,599.84,599.52,0.33360021]
[1743431144926,3.32990023,600.02,599.52,0.33360021]
[1743431145126,2.33697477,600.01,599.52,0.33360021]
[1743431145329,6.86706282,600.01,599.52,0.33360021]
[1743431145527,3.78397743,600.0,599.52,0.33360021]
[1743431145727,3.78408641,599.99,599.52,0.33360021]
[1743431145927,2.33694657,599.98,599.52,0.33360021]
[1743431146129,2.33691948,599.97,599.52,0.33360021]
[1743431146429,2.33691948,599.96,599.52,0.33360021]
[1743431146623,3.08308539,599.98,599.52,0.33360021]
[1743431146624,2.33691948,599.95,599.52,0.33360021]
[1743431146825,3.08308539,599.98,599.52,0.33360021]
[1743431146826,2.33691948,599.94,599.52,0.33360021]
[1743431147024,2.33691948,599.93,599.52,0.33360021]
[1743431147228,0.90443672,599.92,599.52,0.33360021]
[1743431147428,0.90443672,599.91,599.52,0.33360021]
[1743431147625,3.08308539,599.94,599.52,0.33360021]
[1743431147830,0.90437222,599.93,599.52,0.33360021]
[1743431148131,1.18573415,599.93,599.52,0.33360021]
[1743431148525,1.18573415,599.92,599.52,0.33360021]
[1743431149327,1.18573415,599.91,599.52,0.33360021]
[1743431149727,4.23874089,600.12,599.52,0.33360021]
[1743431149927,1.18585368,599.9,599.52,0.33360021]
[1743431150331,1.18585368,599.89,599.52,0.33360021]
[1743431150932,1.18585368,599.88,599.52,0.33360021]
[1743431151437,1.18585368,599.87,599.52,0.33360021]
[1743431151631,0.90486241,599.86,599.52,0.33360021]
[1743431151828,1.18585368,599.87,599.52,0.33360021]
[1743431152033,1.18585368,599.85,599.52,0.33360021]
[1743431152831,1.18585368,599.84,599.52,0.33360021]
[1743431153737,5.64080623,600.07,599.52,0.33360021]
[1743431154032,6.08076876,600.06,599.52,0.33360021]
[1743431154235,9.16650736,600.05,599.52,0.33360021]
[1743431154439,6.08076876,600.04,599.52,0.33360021]
[1743431154639,9.16650736,600.03,599.52,0.33360021]
[1743431154835,2.33875721,600.02,599.52,0.33360021]
[1743431155043,5.42449581,600.01,599.52,0.33360021]
[1743431155243,0.90514267,600.0,599.52,0.33360021]
[1743431155539,3.0857386,600.01,599.52,0.33360021]
[1743431155743,1.1869504,599.99,599.52,0.33360021]
[1743431156642,2.33957767,600.16,599.52,0.33360021]
[1743431156845,2.33957767,600.15,599.52,0.33360021]
[1743431157045,0.90557493,600.14,599.52,0.33360021]
[1743431157246,1.18728164,600.14,599.52,0.33360021]
[1743431157644,1.43444935,600.27,599.52,0.33360021]
[1743431157945,2.34004797,600.26,599.52,0.33360021]
[1743431158146,2.34004797,600.25,599.52,0.33360021]
[1743431158343,3.789477,600.24,599.52,0.33360021]
[1743431158548,9.17270506,600.23,599.52,0.33360021]
[1743431158748,6.58531812,600.22,599.52,0.33360021]
[1743431158952,6.58531812,600.21,599.52,0.33360021]
[1743431159247,6.58531812,600.2,599.52,0.33360021]
[1743431159443,6.58531812,600.19,599.52,0.33360021]
[1743431159641,6.58531812,600.18,599.52,0.33360021]
[1743431159842,6.58531812,600.17,599.52,0.33360021]
[1743431160042,6.58531812,600.16,599.52,0.33360021]
[1743431160343,6.58531812,600.15,599.52,0.33360021]
[1743431160543,6.08533713,600.14,599.52,0.33360021]
[1743431160747,6.08533713,600.13,599.52,0.33360021]
[1743431160950,6.08533713,600.12,599.52,0.33360021]
[1743431161243,0.90559862,600.11,599.52,0.33360021]
[1743431161444,3.08736793,600.11,599.52,0.33360021]
[1743431161644,0.90623805,600.1,599.52,0.33360021]
[1743431161840,1.18761906,600.09,599.52,0.33360021]
[1743431162348,1.18761906,600.08,599.52,0.33360021]
[1743431162747,1.18761906,600.07,599.52,0.33360021]
[1743431163148,3.74818057,600.23,599.52,0.33360021]
[1743431163346,6.09207961,600.22,599.52,0.33360021]
[1743431163551,3.79359726,600.21,599.52,0.33360021]
[1743431163751,2.34276703,600.2,599.52,0.33360021]
[1743431163943,2.34276703,600.19,599.52,0.33360021]
[1743431164145,9.18418921,600.18,599.52,0.33360021]
[1743431164449,6.09355204,600.17,599.52,0.33360021]
[1743431164650,3.79466598,600.16,599.52,0.33360021]
[1743431164951,3.79466598,600.15,599.52,0.33360021]
[1743431165150,3.79466598,600.14,599.52,0.33360021]
[1743431165351,2.34346335,600.13,599.52,0.33360021]
[1743431165551,2.34346335,600.12,599.52,0.33360021]
[1743431165753,2.34346335,600.11,599.52,0.33360021]
[1743431165946,2.34346335,600.1,599.52,0.33360021]
[1743431166149,5.43506891,600.09,599.52,0.33360021]
[1743431166347,2.34419827,600.08,599.52,0.33360021]
[1743431166550,3.53327733,600.07,599.52,0.33360021]
[1743431166750,2.34419827,600.06,599.52,0.33360021]
[1743431166950,2.34419827,600.05,599.52,0.33360021]
[1743431167150,0.90739448,600.04,599.52,0.33360021]
[1743431167346,0.90739448,600.03,599.52,0.33360021]
[1743431167548,1.18907906,600.03,599.52,0.33360021]
[1743431167946,1.65184921,600.29,599.52,0.33360021]
[1743431168150,6.5962896,600.28,599.52,0.33360021]
[1743431168355,6.5962896,600.27,599.52,0.33360021]
[1743431168555,6.5962896,600.26,599.52,0.33360021]
[1743431168756,6.5962896,600.25,599.52,0.33360021]
[1743431168956,6.5962896,600.24,599.52,0.33360021]
[1743431169156,9.68982041,600.23,599.52,0.33360021]
[1743431169348,6.5962896,600.22,599.52,0.33360021]
[1743431169550,9.68982041,600.21,599.52,0.33360021]
[1743431169758,6.5962896,600.2,599.52,0.33360021]
[1743431169956,6.5962896,600.19,599.52,0.33360021]
[1743431170254,6.5962896,600.18,599.52,0.33360021]
[1743431170458,6.5962896,600.17,599.52,0.33360021]
[1743431170657,6.5962896,600.16,599.52,0.33360021]
[1743431170958,9.68982041,600.15,599.52,0.33360021]
[1743431171157,6.5962896,600.14,599.52,0.33360021]
[1743431171457,6.5962896,600.13,599.52,0.33360021]
[1743431171758,6.5962896,600.12,599.52,0.33360021]
[1743431171954,6.5962896,600.11,599.52,0.33360021]
[1743431172154,6.5978222,600.1,599.52,0.33360021]
[1743431172353,9.69135301,600.09,599.52,0.33360021]
[1743431172556,6.5978222,600.08,599.52,0.33360021]
[1743431172756,6.5978222,600.07,599.52,0.33360021]
[1743431172957,6.5978222,600.06,599.52,0.33360021]
[1743431173154,6.5978222,600.05,599.52,0.33360021]
[1743431173358,6.09779303,600.04,599.52,0.33360021]
[1743431173554,6.09779303,600.03,599.52,0.33360021]
[1743431173762,6.09779303,600.02,599.52,0.33360021]
[1743431173958,6.09779303,600.01,599.52,0.33360021]
[1743431174160,6.09831946,600.0,599.52,0.33360021]
[1743431174361,6.10022426,599.99,599.52,0.33360021]
[1743431174561,2.34672529,599.98,599.52,0.33360021]
[1743431174762,2.34672529,599.97,599.52,0.33360021]
[1743431174962,2.34672529,599.96,599.52,0.33360021]
[1743431175162,5.4402561,599.95,599.52,0.33360021]
[1743431175463,2.34672529,599.94,599.52,0.33360021]
[1743431175667,2.34672529,599.93,599.52,0.33360021]
[1743431175965,6.10209014,599.92,599.52,0.33360021]
[1743431176158,2.34682365,599.91,599.52,0.33360021]
[1743431176362,5.44218317,599.9,599.52,0.33360021]
[1743431176563,2.34682365,599.89,599.52,0.33360021]
[1743431176863,5.44218317,599.88,599.52,0.33360021]
[1743431177064,2.34682365,599.87,599.52,0.33360021]
[1743431177264,0.90821792,599.86,599.52,0.33360021]
[1743431177463,1.18981954,599.87,599.52,0.33360021]
[1743431177860,1.94207413,600.12,599.52,0.33360021]
[1743431177861,1.18981954,599.86,599.52,0.33360021]
[1743431178663,1.18981954,599.85,599.52,0.33360021]
[1743431179363,0.29019709,600.24,599.52,0.33360021]
[1743431179364,4.25487065,600.13,599.52,0.33360021]
[1743431179560,6.60171792,600.12,599.52,0.33360021]
[1743431179757,6.60171792,600.11,599.52,0.33360021]
[1743431179957,3.74030236,600.1,599.52,0.33360021]
[1743431180160,3.09604599,600.11,599.52,0.33360021]
[1743431180161,6.60168725,600.09,599.52,0.33360021]
[1743431180363,3.09604599,600.11,599.52,0.33360021]
[1743431180364,5.64556143,600.08,599.52,0.33360021]
[1743431180559,6.10163675,600.07,599.52,0.33360021]
[1743431180768,6.10163675,600.06,599.52,0.33360021]
[1743431180958,6.10150398,600.05,599.52,0.33360021]
[1743431181162,3.79992401,600.04,599.52,0.33360021]
[1743431181463,3.79986288,600.03,599.52,0.33360021]
[1743431181663,9.1975539,600.02,599.52,0.33360021]
[1743431181961,4.66291829,600.01,599.52,0.33360021]
[1743431182158,9.19766799,600.0,599.52,0.33360021]
[1743431182465,6.60171092,599.99,599.52,0.33360021]
[1743431182664,6.60171092,599.98,599.52,0.33360021]
[1743431182864,6.60171092,599.97,599.52,0.33360021]
[1743431183058,6.60171092,599.96,599.52,0.33360021]
[1743431183260,6.60171092,599.95,599.52,0.33360021]
[1743431183567,6.60171092,599.94,599.52,0.33360021]
[1743431183765,6.60171092,599.93,599.52,0.33360021]
[1743431183965,6.60298251,599.92,599.52,0.33360021]
[1743431184263,6.60298251,599.91,599.52,0.33360021]
[1743431184466,6.60298251,599.9,599.52,0.33360021]
[1743431184663,6.60298251,599.89,599.52,0.33360021]
[1743431184863,6.10283797,599.88,599.52,0.33360021]
[1743431185063,6.10283797,599.87,599.52,0.33360021]
[1743431185266,3.80074272,599.86,599.52,0.33360021]
[1743431185467,2.34724537,599.85,599.52,0.33360021]
[1743431185663,2.34724537,599.84,599.52,0.33360021]
[1743431185863,2.34724537,599.83,599.52,0.33360021]
[1743431186060,2.09922276,599.82,599.52,0.33360021]
[1743431186264,0.90843584,599.81,599.52,0.33360021]
[1743431186466,0.90843584,599.8,599.52,0.33360021]
[1743431186662,1.19078692,599.82,599.52,0.33360021]
[1743431186863,1.19078692,599.79,599.52,0.33360021]
[1743431187369,1.19078692,599.78,599.52,0.33360021]
[1743431187768,2.09913725,599.77,599.52,0.33360021]
[1743431187969,2.347094,599.76,599.52,0.33360021]
[1743431188169,0.90835033,599.75,599.52,0.33360021]
[1743431188364,1.19078692,599.74,599.52,0.33360021]
[1743431188767,0.90833565,599.73,599.52,0.33360021]
[1743431188964,2.09912257,599.72,599.52,0.33360021]
[1743431189166,0.90833565,599.71,599.52,0.33360021]